fUSD/lending_fUSD_20250124
["ID","MTS","AMOUNT","RATE_DAILY","PERIOD"]
[350248864,1737735089141,-25000.0,0.00020291,2]
[350248865,1737735089151,-2535.8,0.00020292,2]
[350248866,1737735089161,-2993.93,0.000203,2]
[350248867,1737735089171,-150.0,0.00020306,4]
[350248868,1737735089180,-150.0,0.00020319,4]
[350248869,1737735089190,-9999.98,0.0002032,2]
[350248870,1737735089200,-377.81072696,0.00020324,2]
[350248871,1737735089210,-509.51,0.00020336,2]
[350248872,1737735089221,-580.64,0.00020336,2]
[350248873,1737735089231,-577.72,0.00020336,2]
[350248874,1737735089432,-679.78,0.00020336,2]
[350248875,1737735089443,-1705.53,0.00020336,2]
[350248876,1737735089453,-2554.5,0.00020336,2]
[350248877,1737735089464,-676.513947,0.00020336,2]
[350248878,1737735089474,-956.9,0.00020336,2]
[350248879,1737735089484,-1945.88,0.00020336,2]
[350248880,1737735089495,-2012.13,0.00020336,2]
[350248881,1737735089505,-622.12,0.00020336,2]
[350248882,1737735089516,-846.729176,0.00020336,2]
[350248883,1737735089526,-1583.64,0.00020336,2]
[350248884,1737735089536,-564.16,0.00020336,2]
[350248885,1737735089546,-1121.35,0.00020336,2]
[350248886,1737735089555,-871.63,0.00020336,2]
[350248887,1737735089566,-1370.61,0.00020336,2]
[350248888,1737735089576,-705.29,0.00020336,2]
[350248889,1737735089586,-1962.44,0.00020336,2]
[350248890,1737735089596,-718.17,0.00020336,2]
[350248891,1737735089606,-619.05,0.00020336,2]
[350248892,1737735089616,-865.04,0.00020336,2]
[350248893,1737735089626,-2217.77,0.00020336,2]
[350248894,1737735089636,-722.1,0.00020336,2]
[350248895,1737735089646,-2901.51,0.00020336,2]
[350248896,1737735089656,-562.1,0.00020336,2]
[350248897,1737735089666,-503.38,0.00020336,2]
[350248898,1737735089676,-1511.51,0.00020336,2]
[350248899,1737735089686,-500.0,0.00020336,2]
[350248900,1737735089696,-1656.27,0.00020336,2]
[350248901,1737735089706,-831.3,0.00020336,2]
[350248902,1737735089715,-1027.33,0.00020336,2]
[350248903,1737735089726,-1185.98,0.00020336,2]
[350248904,1737735089736,-985.79,0.00020336,2]
[350248905,1737735089746,-2108.39,0.00020336,2]
[350248906,1737735089756,-1080.47,0.00020336,2]
[350248907,1737735089768,-838.77,0.00020336,2]
[350248908,1737735089778,-538.96,0.00020336,2]
[350248909,1737735089788,-500.0,0.00020336,2]
[350248910,1737735089797,-578.58,0.00020336,2]
[350248911,1737735089807,-2039.23,0.00020336,2]
[350248912,1737735089817,-1068.15,0.00020336,2]
[350248913,1737735089827,-1155.96,0.00020336,2]
[350248914,1737735089836,-2273.11,0.00020336,2]
[350248915,1737735089847,-1338.57,0.00020336,2]
[350248916,1737735089857,-3483.22,0.00020336,2]
[350248917,1737735089867,-500.0,0.00020336,2]
[350248918,1737735089878,-872.95,0.00020336,2]
[350248919,1737735089892,-1147.06,0.00020336,2]
[350248920,1737735089902,-500.0,0.00020336,2]
[350248921,1737735089913,-1277.07,0.00020336,2]
[350248922,1737735089924,-2989.39,0.00020336,2]
[350248923,1737735089935,-644.25,0.00020336,2]
[350248924,1737735089945,-871.11,0.00020336,2]
[350248925,1737735089956,-500.0,0.00020337,2]
[350248926,1737735089968,-500.0,0.00020337,2]
[350248927,1737735089978,-560.27890205,0.00020337,2]
[350248928,1737735089988,-500.0,0.00020337,2]
[350248929,1737735089999,-677.93,0.00020337,2]
[350248930,1737735090010,-500.0,0.00020337,2]
[350248931,1737735090020,-660.08,0.00020337,2]
[350248932,1737735090031,-589.35,0.00020337,2]
[350248933,1737735090041,-500.0,0.00020337,2]
[350248934,1737735090052,-500.0,0.00020337,2]
[350248935,1737735090062,-770.43,0.00020337,2]
[350248936,1737735090072,-500.0,0.00020337,2]
[350248937,1737735090082,-500.0,0.00020337,2]
[350248938,1737735090092,-513.79,0.00020337,2]
[350248939,1737735090102,-322.2841986,0.00020337,2]
[350248940,1737735090112,-580.89,0.00020337,2]
[350248941,1737735090122,-614.29,0.00020337,2]
[350248942,1737735090132,-500.0,0.00020337,2]
[350248943,1737735090142,-500.0,0.00020337,2]
[350248944,1737735090151,-500.0,0.00020337,2]
[350248945,1737735090161,-566.81,0.00020337,2]
[350248946,1737735090171,-767.86,0.00020337,2]
[350248947,1737735090181,-654.02,0.00020337,2]
[350248948,1737735090191,-500.0,0.00020337,2]
[350248949,1737735090202,-500.0,0.00020337,2]
[350248950,1737735090212,-215.39523066,0.00020337,2]
[350248951,1737735090223,-500.0,0.00020337,2]
[350248952,1737735090233,-500.0,0.00020337,2]
[350248953,1737735090244,-500.0,0.00020337,2]
[350248954,1737735090255,-500.0,0.00020337,2]
[350248955,1737735090268,-500.0,0.00020337,2]
[350248956,1737735090279,-509.94,0.00020337,2]
[350248957,1737735090291,-500.0,0.00020337,2]
[350248958,1737735090302,-798.82,0.00020337,2]
[350248959,1737735090313,-652.05,0.00020337,2]
[350248960,1737735090324,-846.33,0.00020337,2]
[350248961,1737735090335,-770.06,0.00020337,2]
[350248962,1737735090345,-937.47,0.00020337,2]
[350248963,1737735090355,-672.05,0.00020337,2]
[350248964,1737735090365,-500.0,0.00020337,2]
[350248965,1737735090375,-692.99,0.00020337,2]
[350248966,1737735090385,-500.0,0.00020337,2]
[350248967,1737735090395,-500.0,0.00020337,2]
[350248968,1737735090405,-500.0,0.00020337,2]
[350248969,1737735090415,-1011.61,0.00020337,2]
[350248970,1737735090424,-500.0,0.00020337,2]
[350248971,1737735090435,-954.97,0.00020337,2]
[350248972,1737735090445,-594.05,0.00020337,2]
[350248973,1737735090460,-614.05,0.00020337,2]
[350248974,1737735090470,-652.47,0.00020337,2]
[350248975,1737735090480,-849.3,0.00020337,2]
[350248976,1737735090490,-708.17,0.00020337,2]
[350248977,1737735090500,-511.38,0.00020337,2]
[350248978,1737735090512,-833.01,0.00020337,2]
[350248979,1737735090521,-681.69,0.00020337,2]
[350248980,1737735090531,-560.31,0.00020337,2]
[350248981,1737735090541,-500.0,0.00020337,2]
[350248982,1737735090551,-805.26,0.00020337,2]
[350248983,1737735090561,-697.85,0.00020337,2]
[350248984,1737735090571,-500.0,0.00020337,2]
[350248985,1737735090581,-500.0,0.00020337,2]
[350248986,1737735090592,-580.02,0.00020337,2]
[350248987,1737735090603,-500.0,0.00020337,2]
[350248988,1737735090613,-669.97,0.00020337,2]
[350248989,1737735090623,-556.37,0.00020337,2]
[350248990,1737735090632,-500.0,0.00020337,2]
[350248991,1737735090643,-500.0,0.00020337,2]
[350248992,1737735090653,-1151.25,0.00020337,2]
[350248993,1737735090662,-582.4,0.00020337,2]
[350248994,1737735090672,-500.0,0.00020337,2]
[350248995,1737735090682,-1417.9,0.00020337,2]
[350248996,1737735090693,-656.44,0.00020337,2]
[350248997,1737735090703,-582.99,0.00020337,2]
[350248998,1737735090713,-544.3,0.00020337,2]
[350248999,1737735090723,-500.0,0.00020337,2]
[350249000,1737735090732,-1083.19,0.00020337,2]
[350249001,1737735090742,-634.65,0.00020337,2]
[350249002,1737735090752,-1858.23,0.00020337,2]
[350249003,1737735090764,-516.81,0.00020337,2]
[350249004,1737735090774,-1003.94,0.00020337,2]
[350249005,1737735090783,-609.52,0.00020337,2]
[350249006,1737735090794,-695.07,0.00020337,2]
[350249007,1737735090803,-530.99,0.00020337,2]
[350249008,1737735090813,-4029.1,0.00020337,2]
[350249009,1737735090823,-500.0,0.00020337,2]
[350249010,1737735090833,-1624.84,0.00020337,2]
[350249011,1737735090843,-672.83,0.00020337,2]
[350249012,1737735090853,-500.0,0.00020337,2]
[350249013,1737735090862,-2230.2,0.00020337,2]
[350249014,1737735090872,-500.0,0.00020337,2]
[350249015,1737735090885,-500.0,0.00020337,2]
[350249016,1737735090895,-559.05,0.00020337,2]
[350249017,1737735090904,-1209.66,0.00020337,2]
[350249018,1737735090917,-1414.61,0.00020337,2]
[350249019,1737735090930,-500.0,0.00020337,2]
[350249020,1737735090939,-500.0,0.00020337,2]
[350249021,1737735090949,-3342.18,0.00020337,2]
[350249022,1737735090959,-500.0,0.00020337,2]
[350249023,1737735090969,-2092.8,0.00020337,2]
[350249024,1737735090979,-521.83,0.00020337,2]
[350249025,1737735090989,-1013.22,0.00020337,2]
[350249026,1737735090999,-500.0,0.00020337,2]
[350249027,1737735091010,-500.0,0.00020337,2]
[350249028,1737735091020,-926.77,0.00020337,2]
[350249029,1737735091030,-500.0,0.00020337,2]
[350249030,1737735091040,-926.0,0.00020337,2]
[350249031,1737735091050,-6114.66,0.00020337,2]
[350249032,1737735091060,-500.0,0.00020338,2]
[350249033,1737735091070,-500.0,0.00020338,2]
[350249034,1737735091080,-500.0,0.00020338,2]
[350249035,1737735091090,-521.95048847,0.00020338,2]
[350249036,1737735091100,-747.3,0.00020338,2]
[350249037,1737735091109,-578.69,0.00020338,2]
[350249038,1737735091119,-550.89,0.00020338,2]
[350249039,1737735091129,-500.0,0.00020338,2]
[350249040,1737735091139,-5000.0,0.00020341,2]
[350249041,1737735091149,-623.66119626,0.00020348,2]
[350249042,1737735091160,-5000.0,0.0002035,2]
[350249043,1737735091169,-2552.13,0.00020353,2]
[350249044,1737735091179,-500.0,0.00020358,2]
[350249045,1737735091190,-261.32494258,0.0002036,2]
[350249046,1737735091200,-150.0,0.00020362,4]
[350249047,1737735091209,-25000.0,0.00020368,2]
[350249048,1737735091220,-500.0,0.00020374,2]
[350249049,1737735091230,-798.61,0.00020374,2]
[350249050,1737735091241,-2156.11,0.00020374,2]
[350249051,1737735091252,-927.0,0.00020374,2]
[350249052,1737735091263,-500.0,0.00020374,2]
[350249053,1737735091273,-544.0,0.00020374,2]
[350249054,1737735091283,-500.0,0.00020374,2]
[350249055,1737735091293,-517.74,0.00020374,2]
[350249056,1737735091302,-1223.83,0.00020374,2]
[350249057,1737735091312,-1716.18,0.00020374,2]
[350249058,1737735091322,-1769.78,0.00020374,2]
[350249059,1737735091331,-617.72,0.00020374,2]
[350249060,1737735091342,-3582.9,0.00020374,2]
[350249061,1737735091352,-6343.0,0.00020374,2]
[350249062,1737735091362,-851.26,0.00020374,2]
[350249063,1737735091372,-592.94,0.00020374,2]
[350249064,1737735091383,-805.09,0.00020374,2]
[350249065,1737735091392,-1086.75,0.00020374,2]
[350249066,1737735091402,-1200.3,0.00020374,2]
[350249067,1737735091413,-5000.0,0.00020376,2]
[350249068,1737735091422,-500.0,0.00020382,2]
[350249069,1737735091432,-150.0,0.00020383,4]
[350249070,1737735091441,-150.0,0.00020383,4]
[350249071,1737735091450,-150.0,0.00020405,4]
[350249072,1737735091460,-21080.07698603,0.0002042,2]
[350249073,1737735091470,-2509.09,0.00020441,2]
[350249074,1737735091480,-150.0,0.00020448,4]
[350249075,1737735091490,-623.66119626,0.00020452,2]
[350249076,1737735091499,-150.0,0.0002046,4]
[350249077,1737735091509,-25000.0,0.0002046,2]
[350249078,1737735091519,-25000.0,0.00020466,2]
[350249079,1737735091529,-350.0,0.00020468,2]
[350249080,1737735091539,-5000.0,0.00020469,2]
[350249081,1737735091549,-509.51,0.00020473,2]
[350249082,1737735091559,-580.64,0.00020473,2]
[350249083,1737735091568,-577.72,0.00020473,2]
[350249084,1737735091578,-679.78,0.00020473,2]
[350249085,1737735091590,-1705.53,0.00020473,2]
[350249086,1737735091600,-2554.5,0.00020473,2]
[350249087,1737735091610,-676.513947,0.00020473,2]
[350249088,1737735091621,-956.9,0.00020473,2]
[350249089,1737735091631,-1945.88,0.00020473,2]
[350249090,1737735091644,-2012.13,0.00020473,2]
[350249091,1737735091655,-622.12,0.00020473,2]
[350249092,1737735091664,-846.729176,0.00020473,2]
[350249093,1737735091674,-1583.64,0.00020473,2]
[350249094,1737735091684,-564.16,0.00020473,2]
[350249095,1737735091695,-1121.35,0.00020473,2]
[350249096,1737735091704,-871.63,0.00020473,2]
[350249097,1737735091715,-1370.61,0.00020473,2]
[350249098,1737735091725,-705.29,0.00020473,2]
[350249099,1737735091735,-1962.44,0.00020473,2]
[350249100,1737735091746,-718.17,0.00020473,2]
[350249101,1737735091756,-619.05,0.00020473,2]
[350249102,1737735091766,-865.04,0.00020473,2]
[350249103,1737735091777,-2217.77,0.00020473,2]
[350249104,1737735091786,-722.1,0.00020473,2]
[350249105,1737735091798,-2901.51,0.00020473,2]
[350249106,1737735091808,-562.1,0.00020473,2]
[350249107,1737735091818,-503.38,0.00020473,2]
[350249108,1737735091829,-1511.51,0.00020473,2]
[350249109,1737735091839,-500.0,0.00020473,2]
[350249110,1737735091850,-1656.27,0.00020473,2]
[350249111,1737735091859,-831.3,0.00020473,2]
[350249112,1737735091869,-1027.33,0.00020473,2]
[350249113,1737735091879,-1185.98,0.00020473,2]
[350249114,1737735091892,-985.79,0.00020473,2]
[350249115,1737735091903,-2108.39,0.00020473,2]
[350249116,1737735091912,-1080.47,0.00020473,2]
[350249117,1737735091923,-838.77,0.00020473,2]
[350249118,1737735091934,-538.96,0.00020473,2]
[350249119,1737735091943,-500.0,0.00020473,2]
[350249120,1737735091953,-578.58,0.00020473,2]
[350249121,1737735091965,-2039.23,0.00020473,2]
[350249122,1737735091975,-1068.15,0.00020473,2]
[350249123,1737735091985,-1155.96,0.00020473,2]
[350249124,1737735091996,-2273.11,0.00020473,2]
[350249125,1737735092007,-1338.57,0.00020473,2]
[350249126,1737735092018,-3483.22,0.00020473,2]
[350249127,1737735092028,-500.0,0.00020473,2]
[350249128,1737735092038,-872.95,0.00020473,2]
[350249129,1737735092048,-1147.06,0.00020473,2]
[350249130,1737735092059,-500.0,0.00020473,2]
[350249131,1737735092068,-1277.07,0.00020473,2]
[350249132,1737735092078,-2989.39,0.00020473,2]
[350249133,1737735092089,-644.25,0.00020473,2]
[350249134,1737735092099,-871.11,0.00020473,2]
[350249135,1737735092110,-500.0,0.00020474,2]
[350249136,1737735092120,-500.0,0.00020474,2]
[350249137,1737735092130,-500.0,0.00020474,2]
[350249138,1737735092140,-677.93,0.00020474,2]
[350249139,1737735092150,-500.0,0.00020474,2]
[350249140,1737735092159,-660.08,0.00020474,2]
[350249141,1737735092169,-589.35,0.00020474,2]
[350249142,1737735092178,-500.0,0.00020474,2]
[350249143,1737735092188,-500.0,0.00020474,2]
[350249144,1737735092197,-770.43,0.00020474,2]
[350249145,1737735092207,-500.0,0.00020474,2]
[350249146,1737735092222,-500.0,0.00020474,2]
[350249147,1737735092232,-513.79,0.00020474,2]
[350249148,1737735092241,-580.89,0.00020474,2]
[350249149,1737735092251,-614.29,0.00020474,2]
[350249150,1737735092261,-500.0,0.00020474,2]
[350249151,1737735092270,-500.0,0.00020474,2]
[350249152,1737735092280,-500.0,0.00020474,2]
[350249153,1737735092290,-566.81,0.00020474,2]
[350249154,1737735092300,-767.86,0.00020474,2]
[350249155,1737735092310,-654.02,0.00020474,2]
[350249156,1737735092320,-500.0,0.00020474,2]
[350249157,1737735092331,-500.0,0.00020474,2]
[350249158,1737735092343,-260.61860678,0.00020474,2]
[350249159,1737735092354,-500.0,0.00020474,2]
[350249160,1737735092364,-500.0,0.00020474,2]
[350249161,1737735092373,-500.0,0.00020474,2]
[350249162,1737735092383,-500.0,0.00020474,2]
[350249163,1737735092392,-509.94,0.00020474,2]
[350249164,1737735092402,-500.0,0.00020474,2]
[350249165,1737735092412,-798.82,0.00020474,2]
[350249166,1737735092422,-652.05,0.00020474,2]
[350249167,1737735092433,-846.33,0.00020474,2]
[350249168,1737735092443,-770.06,0.00020474,2]
[350249169,1737735092452,-937.47,0.00020474,2]
[350249170,1737735092463,-672.05,0.00020474,2]
[350249171,1737735092473,-500.0,0.00020474,2]
[350249172,1737735092483,-692.99,0.00020474,2]
[350249173,1737735092493,-500.0,0.00020474,2]
[350249174,1737735092505,-500.0,0.00020474,2]
[350249175,1737735092517,-500.0,0.00020474,2]
[350249176,1737735092527,-1011.61,0.00020474,2]
[350249177,1737735092537,-500.0,0.00020474,2]
[350249178,1737735092547,-954.97,0.00020474,2]
[350249179,1737735092557,-594.05,0.00020474,2]
[350249180,1737735092568,-614.05,0.00020474,2]
[350249181,1737735092578,-652.47,0.00020474,2]
[350249182,1737735092588,-849.3,0.00020474,2]
[350249183,1737735092598,-708.17,0.00020474,2]
[350249184,1737735092607,-511.38,0.00020474,2]
[350249185,1737735092618,-833.01,0.00020474,2]
[350249186,1737735092628,-681.69,0.00020474,2]
[350249187,1737735092638,-560.31,0.00020474,2]
[350249188,1737735092648,-500.0,0.00020474,2]
[350249189,1737735092658,-805.26,0.00020474,2]
[350249190,1737735092668,-697.85,0.00020474,2]
[350249191,1737735092679,-593.47305776,0.00020474,2]
[350249192,1737735092695,-500.0,0.00020474,2]
[350249193,1737735092706,-580.02,0.00020474,2]
[350249194,1737735092716,-431.44,0.00020474,2]
[350249195,1737735092726,-669.97,0.00020474,2]
[350249196,1737735092737,-556.37,0.00020474,2]
[350249197,1737735092747,-500.0,0.00020474,2]
[350249198,1737735092759,-500.0,0.00020474,2]
[350249199,1737735092769,-1151.25,0.00020474,2]
[350249200,1737735092779,-582.4,0.00020474,2]
[350249201,1737735092789,-500.0,0.00020474,2]
[350249202,1737735092949,-1417.9,0.00020474,2]
[350249203,1737735092962,-656.44,0.00020474,2]
[350249204,1737735092972,-582.99,0.00020474,2]
[350249205,1737735092982,-544.3,0.00020474,2]
[350249206,1737735092992,-167.64,0.00020474,2]
[350249207,1737735093002,-1083.19,0.00020474,2]
[350249208,1737735093013,-634.65,0.00020474,2]
[350249209,1737735093024,-1858.23,0.00020474,2]
[350249210,1737735093034,-516.81,0.00020474,2]
[350249211,1737735093044,-1003.94,0.00020474,2]
[350249212,1737735093056,-695.07,0.00020474,2]
[350249213,1737735093068,-530.99,0.00020474,2]
[350249214,1737735093078,-4029.1,0.00020474,2]
[350249215,1737735093089,-500.0,0.00020474,2]
[350249216,1737735093099,-1624.84,0.00020474,2]
[350249217,1737735093110,-672.83,0.00020474,2]
[350249218,1737735093121,-500.0,0.00020474,2]
[350249219,1737735093131,-2230.2,0.00020474,2]
[350249220,1737735093142,-551.8,0.00020474,2]
[350249221,1737735093152,-500.0,0.00020474,2]
[350249222,1737735093163,-559.05,0.00020474,2]
[350249223,1737735093174,-1209.66,0.00020474,2]
[350249224,1737735093184,-500.0,0.00020474,2]
[350249225,1737735093195,-1414.61,0.00020474,2]
[350249226,1737735093206,-500.0,0.00020474,2]
[350249227,1737735093216,-3342.18,0.00020474,2]
[350249228,1737735093226,-547.58556224,0.00020474,2]
[350249229,1737735093237,-2092.8,0.00020474,2]
[350249230,1737735093248,-521.83,0.00020474,2]
[350249231,1737735093260,-1013.22,0.00020474,2]
[350249232,1737735093272,-202.63,0.00020474,2]
[350249233,1737735093283,-500.0,0.00020474,2]
[350249234,1737735093294,-926.77,0.00020474,2]
[350249235,1737735093305,-500.0,0.00020474,2]
[350249236,1737735093318,-926.0,0.00020474,2]
[350249237,1737735093328,-6114.66,0.00020474,2]
[350249238,1737735093339,-229.89857477,0.00020475,2]
[350249239,1737735093349,-500.0,0.00020475,2]
[350249240,1737735093359,-500.0,0.00020475,2]
[350249241,1737735093369,-747.3,0.00020475,2]
[350249242,1737735093380,-578.69,0.00020475,2]
[350249243,1737735093390,-550.89,0.00020475,2]
[350249244,1737735093400,-500.0,0.00020475,2]
[350249245,1737735093410,-25000.0,0.00020484,2]
[350249246,1737735093421,-150.0,0.00020492,4]
[350249247,1737735093432,-500.0,0.00020495,2]
[350249248,1737735093441,-2110.0,0.000205,2]
[350249249,1737735093451,-1144.59845589,0.000205,2]
[350249250,1737735093461,-150.0,0.000205,8]
[350249251,1737735093471,-500.0,0.00020511,2]
[350249252,1737735093482,-798.61,0.00020511,2]
[350249253,1737735093492,-2156.11,0.00020511,2]
[350249254,1737735093502,-927.0,0.00020511,2]
[350249255,1737735093513,-500.0,0.00020511,2]
[350249256,1737735093524,-544.0,0.00020511,2]
[350249257,1737735093534,-500.0,0.00020511,2]
[350249258,1737735093544,-517.74,0.00020511,2]
[350249259,1737735093554,-1223.83,0.00020511,2]
[350249260,1737735093565,-1716.18,0.00020511,2]
[350249261,1737735093577,-1769.78,0.00020511,2]
[350249262,1737735093587,-617.72,0.00020511,2]
[350249263,1737735093597,-3582.9,0.00020511,2]
[350249264,1737735093608,-6343.0,0.00020511,2]
[350249265,1737735093618,-851.26,0.00020511,2]
[350249266,1737735093629,-592.94,0.00020511,2]
[350249267,1737735093639,-805.09,0.00020511,2]
[350249268,1737735093649,-1086.75,0.00020511,2]
[350249269,1737735093659,-1200.3,0.00020511,2]
[350249270,1737735093669,-442.32,0.00020519,2]
[350249271,1737735093679,-150.0,0.00020535,4]
[350249272,1737735093688,-150.0,0.00020537,4]
[350249273,1737735093699,-150.0,0.00020537,4]
[350249274,1737735093709,-177.63,0.00020548,2]
[350249275,1737735093719,-205.002168,0.00020548,2]
[350249276,1737735093730,-623.66119626,0.00020555,2]
[350249277,1737735093740,-5000.0,0.00020562,2]
[350249278,1737735093750,-150.0,0.00020578,4]
[350249279,1737735093759,-369.99212057,0.000206,2]
[350249280,1737735093769,-1262.70537177,0.000206,2]
[350249281,1737735093779,-16220.51341921,0.00020602,2]
[350249282,1737735093790,-21080.07698603,0.00020602,2]
[350249283,1737735093800,-509.51,0.0002061,2]
[350249284,1737735093810,-580.64,0.0002061,2]
[350249285,1737735093820,-577.72,0.0002061,2]
[350249286,1737735093831,-679.78,0.0002061,2]
[350249287,1737735093842,-1705.53,0.0002061,2]
[350249288,1737735093853,-2554.5,0.0002061,2]
[350249289,1737735093863,-676.513947,0.0002061,2]
[350249290,1737735093873,-956.9,0.0002061,2]
[350249291,1737735093887,-1945.88,0.0002061,2]
[350249292,1737735093898,-2012.13,0.0002061,2]
[350249293,1737735093909,-622.12,0.0002061,2]
[350249294,1737735093919,-846.729176,0.0002061,2]
[350249295,1737735093930,-1583.64,0.0002061,2]
[350249296,1737735093940,-564.16,0.0002061,2]
[350249297,1737735093952,-1121.35,0.0002061,2]
[350249298,1737735093962,-871.63,0.0002061,2]
[350249299,1737735093972,-1370.61,0.0002061,2]
[350249300,1737735093983,-705.29,0.0002061,2]
[350249301,1737735093995,-1962.44,0.0002061,2]
[350249302,1737735094006,-718.17,0.0002061,2]
[350249303,1737735094018,-619.05,0.0002061,2]
[350249304,1737735094028,-865.04,0.0002061,2]
[350249305,1737735094039,-2217.77,0.0002061,2]
[350249306,1737735094049,-722.1,0.0002061,2]
[350249307,1737735094059,-2901.51,0.0002061,2]
[350249308,1737735094070,-562.1,0.0002061,2]
[350249309,1737735094081,-503.38,0.0002061,2]
[350249310,1737735094091,-1511.51,0.0002061,2]
[350249311,1737735094101,-500.0,0.0002061,2]
[350249312,1737735094111,-1656.27,0.0002061,2]
[350249313,1737735094121,-831.3,0.0002061,2]
[350249314,1737735094132,-1027.33,0.0002061,2]
[350249315,1737735094142,-1185.98,0.0002061,2]
[350249316,1737735094152,-985.79,0.0002061,2]
[350249317,1737735094163,-2108.39,0.0002061,2]
[350249318,1737735094172,-1080.47,0.0002061,2]
[350249319,1737735094182,-838.77,0.0002061,2]
[350249320,1737735094193,-538.96,0.0002061,2]
[350249321,1737735094203,-500.0,0.0002061,2]
[350249322,1737735094212,-578.58,0.0002061,2]
[350249323,1737735094223,-2039.23,0.0002061,2]
[350249324,1737735094233,-1068.15,0.0002061,2]
[350249325,1737735094243,-1155.96,0.0002061,2]
[350249326,1737735094254,-2273.11,0.0002061,2]
[350249327,1737735094264,-1338.57,0.0002061,2]
[350249328,1737735094274,-3483.22,0.0002061,2]
[350249329,1737735094284,-500.0,0.0002061,2]
[350249330,1737735094295,-872.95,0.0002061,2]
[350249331,1737735094304,-1147.06,0.0002061,2]
[350249332,1737735094315,-500.0,0.0002061,2]
[350249333,1737735094325,-1277.07,0.0002061,2]
[350249334,1737735094336,-2989.39,0.0002061,2]
[350249335,1737735094346,-644.25,0.0002061,2]
[350249336,1737735094356,-500.0,0.00020611,2]
[350249337,1737735094366,-500.0,0.00020611,2]
[350249338,1737735094376,-500.0,0.00020611,2]
[350249339,1737735094386,-677.93,0.00020611,2]
[350249340,1737735094396,-500.0,0.00020611,2]
[350249341,1737735094407,-660.08,0.00020611,2]
[350249342,1737735094417,-589.35,0.00020611,2]
[350249343,1737735094427,-500.0,0.00020611,2]
[350249344,1737735094438,-500.0,0.00020611,2]
[350249345,1737735094454,-770.43,0.00020611,2]
[350249346,1737735094464,-500.0,0.00020611,2]
[350249347,1737735094473,-500.0,0.00020611,2]
[350249348,1737735094483,-513.79,0.00020611,2]
[350249349,1737735094499,-580.89,0.00020611,2]
[350249350,1737735094516,-614.29,0.00020611,2]
[350249351,1737735094526,-500.0,0.00020611,2]
[350249352,1737735094537,-500.0,0.00020611,2]
[350249353,1737735094547,-500.0,0.00020611,2]
[350249354,1737735094557,-566.81,0.00020611,2]
[350249355,1737735094567,-767.86,0.00020611,2]
[350249356,1737735094577,-654.02,0.00020611,2]
[350249357,1737735094587,-500.0,0.00020611,2]
[350249358,1737735094597,-500.0,0.00020611,2]
[350249359,1737735094607,-500.0,0.00020611,2]
[350249360,1737735094616,-500.0,0.00020611,2]
[350249361,1737735094627,-500.0,0.00020611,2]
[350249362,1737735094637,-500.0,0.00020611,2]
[350249363,1737735094649,-509.94,0.00020611,2]